fUSD/lending_fUSD_20251225
["ID","MTS","AMOUNT","RATE_DAILY","PERIOD"]
[399724185,1766635862637,-300.0,0.00038409,2]
[399724186,1766635862647,-150.0,0.00038427,7]
[399724187,1766635862658,-150.0,0.00038429,7]
[399724188,1766635862668,-205.74864735,0.00038435,7]
[399724189,1766635862678,-484.4565372,0.00038438,30]
[399724190,1766635862688,-150.0,0.00038438,30]
[399724191,1766635862698,-150.0,0.00038453,7]
[399724192,1766635862708,-300.0,0.00038454,2]
[399724193,1766635862717,-205.74864735,0.00038474,7]
[399724194,1766635862728,-150.0,0.00038478,7]
[399724195,1766635862738,-1000.0,0.00038481,7]
[399724196,1766635862748,-150.0,0.00038499,7]
[399724197,1766635862759,-150.0,0.00038499,7]
[399724198,1766635862769,-2000.0,0.000385,2]
[399724199,1766635862779,-150.0,0.00038507,7]
[399724200,1766635862789,-150.0,0.00038511,7]
[399724201,1766635862799,-205.74864735,0.00038514,7]
[399724202,1766635862808,-150.0,0.00038518,7]
[399724203,1766635862818,-201.12732165,0.00038521,2]
[399724204,1766635862828,-1000.0,0.0003853,7]
[399724205,1766635862838,-1000.0,0.00038546,7]
[399724206,1766635862848,-205.74864735,0.00038553,7]
[399724207,1766635862857,-150.0,0.00038553,7]
[399724208,1766635862867,-150.0,0.00038553,7]
[399724209,1766635862877,-300.0,0.00038568,2]
[399724210,1766635862890,-150.0,0.00038569,7]
[399724211,1766635862901,-300.0,0.00038571,2]
[399724212,1766635862912,-150.0,0.00038576,7]
[399724213,1766635862922,-1000.0,0.00038583,7]
[399724214,1766635862932,-1000.0,0.00038592,7]
[399724215,1766635862947,-205.74864735,0.00038593,7]
[399724216,1766635862958,-1000.0,0.00038608,7]
[399724217,1766635862967,-500.0,0.00038609,30]
[399724218,1766635862978,-564.0,0.00038609,30]
[399724219,1766635862987,-500.0,0.00038609,30]
[399724220,1766635862998,-1500.0,0.00038609,30]
[399724221,1766635863009,-478.75725327,0.00038609,30]
[399724222,1766635863020,-500.0,0.00038609,30]
[399724223,1766635863031,-500.0,0.00038609,30]
[399724224,1766635863041,-1500.0,0.00038609,30]
[399724225,1766635863052,-500.0,0.00038609,30]
[399724226,1766635863063,-250.0,0.00038609,30]
[399724227,1766635863074,-250.0,0.00038609,30]
[399724228,1766635863084,-250.0,0.00038609,30]
[399724229,1766635863095,-151.0,0.00038609,30]
[399724230,1766635863105,-150.0,0.0003861,30]
[399724231,1766635863115,-150.0,0.0003861,30]
[399724232,1766635863126,-1000.0,0.00038622,7]
[399724233,1766635863138,-300.0,0.00038626,2]
[399724234,1766635863149,-1000.0,0.00038629,30]
[399724235,1766635863159,-500.0,0.0003863,120]
[399724236,1766635863169,-2322.26,0.0003863,120]
[399724237,1766635863178,-1209.56,0.0003863,120]
[399724238,1766635863188,-5595.09,0.0003863,120]
[399724239,1766635863197,-549.23,0.0003863,120]
[399724240,1766635863207,-578.46,0.0003863,120]
[399724241,1766635863217,-585.55,0.0003863,5]
[399724242,1766635863227,-161.0,0.0003863,90]
[399724243,1766635863237,-205.74864735,0.00038632,7]
[399724244,1766635863248,-254.13060141,0.00038633,2]
[399724245,1766635863257,-201.12732169,0.00038633,2]
[399724246,1766635863267,-1000.0,0.00038647,7]
[399724247,1766635863277,-150.0,0.00038647,7]
[399724248,1766635863288,-150.0,0.00038656,7]
[399724249,1766635863298,-150.0,0.00038661,7]
[399724250,1766635863308,-205.74864735,0.00038671,7]
[399724251,1766635863318,-150.0,0.00038686,7]
[399724252,1766635863328,-200.0,0.00038687,20]
[399724253,1766635863338,-1000.0,0.00038687,20]
[399724254,1766635863348,-200.0,0.00038688,20]
[399724255,1766635863358,-200.0,0.00038688,20]
[399724256,1766635863367,-152.28,0.000387,14]
[399724257,1766635863376,-209.5,0.000387,30]
[399724258,1766635863386,-300.0,0.00038702,2]
[399724259,1766635863397,-150.0,0.00038708,7]
[399724260,1766635863407,-205.74864735,0.00038711,7]
[399724261,1766635863417,-300.0,0.00038713,2]
[399724262,1766635863427,-300.0,0.00038715,2]
[399724263,1766635863437,-300.0,0.00038743,2]
[399724264,1766635863449,-1000.0,0.00038745,7]
[399724265,1766635863458,-205.74864735,0.0003875,7]
[399724266,1766635863468,-1000.0,0.00038752,7]
[399724267,1766635863478,-150.0,0.0003876,7]
[399724268,1766635863489,-150.0,0.00038764,7]
[399724269,1766635863500,-1274.48,0.00038767,30]
[399724270,1766635863510,-1274.48,0.00038767,30]
[399724271,1766635863520,-1274.48,0.00038767,30]
[399724272,1766635863529,-1274.48,0.00038767,30]
[399724273,1766635863539,-150.0,0.0003877,7]
[399724274,1766635863549,-150.0,0.0003877,7]
[399724275,1766635863559,-1000.0,0.00038771,7]
[399724276,1766635863570,-1000.0,0.00038773,7]
[399724277,1766635863583,-150.0,0.00038781,7]
[399724278,1766635863592,-205.74864735,0.00038789,7]
[399724279,1766635863601,-150.0,0.00038797,7]
[399724280,1766635863611,-1000.0,0.00038799,27]
[399724281,1766635863622,-165.3,0.000388,27]
[399724282,1766635863632,-663.02,0.000388,14]
[399724283,1766635863642,-6181.0,0.000388,30]
[399724284,1766635863654,-300.0,0.00038804,2]
[399724285,1766635863664,-1000.0,0.00038804,3]
[399724286,1766635863674,-2000.0,0.00038805,3]
[399724287,1766635863684,-2000.0,0.00038805,3]
[399724288,1766635863694,-1000.0,0.00038806,7]
[399724289,1766635863704,-150.0,0.00038817,7]
[399724290,1766635863715,-300.0,0.00038819,2]
[399724291,1766635863724,-205.74864735,0.00038829,7]
[399724292,1766635863735,-150.0,0.0003883,7]
[399724293,1766635863744,-300.0,0.00038839,2]
[399724294,1766635863755,-150.0,0.00038847,7]
[399724295,1766635864062,-150.0,0.00038858,7]
[399724296,1766635864087,-150.0,0.00038859,7]
[399724297,1766635864099,-300.0,0.0003886,2]
[399724298,1766635864110,-150.0,0.00038861,2]
[399724299,1766635864121,-300.0,0.00038867,2]
[399724300,1766635864131,-205.74864735,0.00038868,7]
[399724301,1766635864142,-1000.0,0.0003887,7]
[399724302,1766635864153,-300.0,0.00038886,2]
[399724303,1766635864163,-300.0,0.00038888,2]
[399724304,1766635864174,-1000.0,0.00038898,7]
[399724305,1766635864185,-500.0,0.00038899,45]
[399724306,1766635864195,-211.88641049,0.000389,2]
[399724307,1766635864205,-2141.13101448,0.000389,2]
[399724308,1766635864216,-9957.40381954,0.000389,2]
[399724309,1766635864227,-179.56354721,0.000389,7]
[399724310,1766635864238,-497.36426608,0.000389,2]
[399724311,1766635864249,-28192.06716255,0.000389,2]
[399724312,1766635864259,-175.292,0.000389,2]
[399724313,1766635864270,-16447.84435987,0.000389,2]
[399724314,1766635864280,-1000.0,0.00038903,5]
[399724315,1766635864291,-500.0,0.00038904,120]
[399724316,1766635864303,-2322.26,0.00038904,120]
[399724317,1766635864314,-1209.56,0.00038904,120]
[399724318,1766635864324,-5595.09,0.00038904,120]
[399724319,1766635864334,-549.23,0.00038904,120]
[399724320,1766635864345,-578.46,0.00038904,120]
[399724321,1766635864355,-585.55,0.00038904,5]
[399724322,1766635864366,-150.0,0.00038905,7]
[399724323,1766635864375,-205.74864735,0.00038908,7]
[399724324,1766635864384,-205.74864735,0.00038947,7]
[399724325,1766635864395,-1000.0,0.00038952,7]
[399724326,1766635864425,-310.0,0.00038959,120]
[399724327,1766635864438,-150.0,0.00038973,30]
[399724328,1766635864450,-150.0,0.00038973,2]
[399724329,1766635864461,-300.0,0.00038983,2]
[399724330,1766635864473,-300.0,0.00038986,2]
[399724331,1766635864484,-1000.0,0.00038986,30]
[399724332,1766635864496,-300.0,0.00038986,30]
[399724333,1766635864508,-300.0,0.00038986,40]
[399724334,1766635864519,-217.16594584,0.00038986,7]
[399724335,1766635864531,-254.3308509,0.00038986,7]
[399724336,1766635864543,-167.40399448,0.00038986,7]
[399724337,1766635864554,-205.74864735,0.00038986,7]
[399724338,1766635864565,-172.17643339,0.00038986,7]
[399724339,1766635864577,-288.73794334,0.00038986,7]
[399724340,1766635864589,-152.82523523,0.00038986,7]
[399724341,1766635864601,-244.28578739,0.00038986,7]
[399724342,1766635864612,-153.0146339,0.00038986,7]
[399724343,1766635864624,-152.35984984,0.00038986,7]
[399724344,1766635864635,-159.71310388,0.00038986,7]
[399724345,1766635864647,-206.95046778,0.00038986,7]
[399724346,1766635864658,-156.25688309,0.00038986,7]
[399724347,1766635864669,-500.0,0.00038987,54]
[399724348,1766635864680,-543.0,0.00038987,54]
[399724349,1766635864691,-500.0,0.00038987,54]
[399724350,1766635864702,-1500.0,0.00038987,54]
[399724351,1766635864713,-461.67526834,0.00038987,54]
[399724352,1766635864723,-500.0,0.00038987,54]
[399724353,1766635864734,-500.0,0.00038987,54]
[399724354,1766635864745,-1500.0,0.00038987,54]
[399724355,1766635864763,-557.5788265,0.00038987,54]
[399724356,1766635864774,-500.0,0.00038987,54]
[399724357,1766635864786,-151.0,0.00038987,54]
[399724358,1766635864799,-544.95108606,0.00038987,54]
[399724359,1766635864815,-250.0,0.00038987,54]
[399724360,1766635864827,-250.0,0.00038987,54]
[399724361,1766635864839,-250.0,0.00038987,54]
[399724362,1766635864850,-151.0,0.00038987,54]
[399724363,1766635864861,-1000.0,0.00038987,7]
[399724364,1766635864872,-1000.0,0.00038989,7]
[399724365,1766635864883,-219.52265803,0.0003899,2]
[399724366,1766635864894,-300.251154,0.00038991,93]
[399724367,1766635864906,-1000.0,0.00038992,30]
[399724368,1766635864917,-150.0,0.00038995,7]
[399724369,1766635864928,-1000.0,0.00038996,14]
[399724370,1766635864939,-151.0,0.00038997,14]
[399724371,1766635864953,-169.34762389,0.00038998,30]
[399724372,1766635864964,-169.34762389,0.00038998,30]
[399724373,1766635864976,-169.34762389,0.00038998,30]
[399724374,1766635864987,-169.34762389,0.00038998,30]
[399724375,1766635864998,-169.34762389,0.00038998,30]
[399724376,1766635865010,-500.0,0.00038998,30]
[399724377,1766635865022,-543.0,0.00038998,30]
[399724378,1766635865033,-500.0,0.00038998,30]
[399724379,1766635865044,-1500.0,0.00038998,30]
[399724380,1766635865055,-151.0,0.00038998,30]
[399724381,1766635865066,-500.0,0.00038998,31]
[399724382,1766635865078,-311.1,0.00038998,30]
[399724383,1766635865090,-543.0,0.00038998,31]
[399724384,1766635865100,-500.0,0.00038998,31]
[399724385,1766635865111,-1500.0,0.00038998,31]
[399724386,1766635865122,-429.318,0.00038998,30]
[399724387,1766635865133,-445.202766,0.00038998,31]
[399724388,1766635865143,-500.0,0.00038998,30]
[399724389,1766635865153,-500.0,0.00038998,31]
[399724390,1766635865164,-1500.0,0.00038998,30]
[399724391,1766635865175,-500.0,0.00038998,30]
[399724392,1766635865185,-1500.0,0.00038998,31]
[399724393,1766635865195,-500.0,0.00038998,31]
[399724394,1766635865207,-518.5,0.00038998,30]
[399724395,1766635865217,-537.6845,0.00038998,31]
[399724396,1766635865228,-500.0,0.00038998,30]
[399724397,1766635865239,-156.587,0.00038998,30]
[399724398,1766635865249,-500.0,0.00038998,31]
[399724399,1766635865260,-225.31429834,0.00038998,31]
[399724400,1766635865271,-151.0,0.00038998,30]
[399724401,1766635865283,-151.0,0.00038998,31]
[399724402,1766635865294,-539.24,0.00038998,30]
[399724403,1766635865305,-559.19188,0.00038998,31]
[399724404,1766635865316,-250.0,0.00038998,30]
[399724405,1766635865328,-250.0,0.00038998,30]
[399724406,1766635865339,-250.0,0.00038998,31]
[399724407,1766635865349,-250.0,0.00038998,31]
[399724408,1766635865361,-250.0,0.00038998,30]
[399724409,1766635865372,-250.0,0.00038998,31]
[399724410,1766635865385,-151.0,0.00038998,30]
[399724411,1766635865396,-151.0,0.00038998,31]
[399724412,1766635865408,-151.0,0.00038998,30]
[399724413,1766635865418,-155.81290792,0.00038998,31]
[399724414,1766635865429,-1000.0,0.00038998,30]
[399724415,1766635865440,-1000.0,0.00038998,30]
[399724416,1766635865451,-1000.0,0.00038998,30]
[399724417,1766635865463,-150.0,0.00038999,2]
[399724418,1766635865473,-1077.55509592,0.00038999,30]
[399724419,1766635865484,-169.34762389,0.00038999,30]
[399724420,1766635865494,-169.34762389,0.00038999,30]
[399724421,1766635865505,-169.34762389,0.00038999,30]
[399724422,1766635865515,-169.34762389,0.00038999,30]
[399724423,1766635865526,-169.34762389,0.00038999,30]
[399724424,1766635865537,-169.34762389,0.00038999,30]
[399724425,1766635865548,-169.34762389,0.00038999,30]
[399724426,1766635865559,-169.34762389,0.00038999,30]
[399724427,1766635865569,-169.34762389,0.00038999,30]
[399724428,1766635865583,-169.34762389,0.00038999,30]
[399724429,1766635865595,-300.0,0.00038999,10]
[399724430,1766635865605,-300.0,0.00038999,10]
[399724431,1766635865616,-152.0,0.00038999,120]
[399724432,1766635865627,-152.0,0.00038999,120]
[399724433,1766635865637,-1256.0,0.00038999,120]
[399724434,1766635865647,-152.0,0.00038999,120]
[399724435,1766635865659,-1256.0,0.00038999,120]
[399724436,1766635865668,-152.0,0.00038999,120]
[399724437,1766635865678,-1256.0,0.00038999,120]
[399724438,1766635865688,-152.0,0.00038999,120]
[399724439,1766635865698,-837.0,0.00038999,120]
[399724440,1766635865709,-152.0,0.00038999,120]
[399724441,1766635865719,-1256.0,0.00038999,120]
[399724442,1766635865729,-152.0,0.00038999,120]
[399724443,1766635865739,-835.0,0.00038999,120]
[399724444,1766635865749,-152.0,0.00038999,120]
[399724445,1766635865759,-1256.0,0.00038999,120]
[399724446,1766635865770,-152.0,0.00038999,120]
[399724447,1766635865780,-152.0,0.00038999,120]
[399724448,1766635865790,-1256.0,0.00038999,120]
[399724449,1766635865800,-152.0,0.00038999,120]
[399724450,1766635865811,-152.0,0.00038999,120]
[399724451,1766635865822,-1256.0,0.00038999,120]
[399724452,1766635865832,-152.0,0.00038999,120]
[399724453,1766635865842,-152.0,0.00038999,120]
[399724454,1766635865852,-1256.0,0.00038999,120]
[399724455,1766635865863,-152.0,0.00038999,120]
[399724456,1766635865872,-152.0,0.00038999,120]
[399724457,1766635865882,-152.0,0.00038999,120]
[399724458,1766635865892,-1256.0,0.00038999,120]
[399724459,1766635865902,-152.0,0.00038999,120]
[399724460,1766635865913,-152.0,0.00038999,120]
[399724461,1766635865923,-1256.0,0.00038999,120]
[399724462,1766635865933,-152.0,0.00038999,120]
[399724463,1766635865944,-152.0,0.00038999,120]
[399724464,1766635865954,-1256.0,0.00038999,120]
[399724465,1766635865964,-152.0,0.00038999,120]
[399724466,1766635865974,-1256.0,0.00038999,120]
[399724467,1766635865984,-152.0,0.00038999,120]
[399724468,1766635865995,-152.0,0.00038999,120]
[399724469,1766635866005,-1256.0,0.00038999,120]
[399724470,1766635866017,-152.0,0.00038999,120]
[399724471,1766635866027,-152.0,0.00038999,120]
[399724472,1766635866038,-152.0,0.00038999,120]
[399724473,1766635866048,-1256.0,0.00038999,120]
[399724474,1766635866059,-152.0,0.00038999,120]
[399724475,1766635866070,-152.0,0.00038999,120]
[399724476,1766635866080,-1256.0,0.00038999,120]
[399724477,1766635866090,-152.0,0.00038999,120]
[399724478,1766635866100,-152.0,0.00038999,120]
[399724479,1766635866110,-1256.0,0.00038999,120]
[399724480,1766635866120,-152.0,0.00038999,120]
[399724481,1766635866132,-152.0,0.00038999,120]
[399724482,1766635866143,-1256.0,0.00038999,120]
[399724483,1766635866153,-152.0,0.00038999,120]
[399724484,1766635866163,-1256.0,0.00038999,120]
[399724485,1766635866173,-152.0,0.00038999,120]
[399724486,1766635866184,-152.0,0.00038999,120]
[399724487,1766635866194,-1256.0,0.00038999,120]
[399724488,1766635866204,-152.0,0.00038999,120]
[399724489,1766635866215,-152.0,0.00038999,120]
[399724490,1766635866226,-1256.0,0.00038999,120]
[399724491,1766635866236,-152.0,0.00038999,120]
[399724492,1766635866246,-152.0,0.00038999,120]
[399724493,1766635866257,-1256.0,0.00038999,120]
[399724494,1766635866267,-152.0,0.00038999,120]
[399724495,1766635866277,-152.0,0.00038999,120]
[399724496,1766635866288,-1256.0,0.00038999,120]
[399724497,1766635866299,-152.0,0.00038999,120]
[399724498,1766635866310,-152.0,0.00038999,120]
[399724499,1766635866320,-1256.0,0.00038999,120]
[399724500,1766635866331,-152.0,0.00038999,120]
[399724501,1766635866342,-152.0,0.00038999,120]
[399724502,1766635866353,-1256.0,0.00038999,120]
[399724503,1766635866363,-152.0,0.00038999,120]
[399724504,1766635866374,-1256.0,0.00038999,120]
[399724505,1766635866385,-152.0,0.00038999,120]
[399724506,1766635866395,-152.0,0.00038999,120]
[399724507,1766635866406,-152.0,0.00038999,120]
[399724508,1766635866416,-1256.0,0.00038999,120]
[399724509,1766635866426,-152.0,0.00038999,120]
[399724510,1766635866438,-152.0,0.00038999,120]
[399724511,1766635866448,-1256.0,0.00038999,120]
[399724512,1766635866459,-152.0,0.00038999,120]
[399724513,1766635866470,-152.0,0.00038999,120]
[399724514,1766635866481,-152.0,0.00038999,120]
[399724515,1766635866492,-1256.0,0.00038999,120]
[399724516,1766635866504,-152.0,0.00038999,120]
[399724517,1766635866515,-152.0,0.00038999,120]
[399724518,1766635866526,-1256.0,0.00038999,120]
[399724519,1766635866539,-152.0,0.00038999,120]
[399724520,1766635866550,-152.0,0.00038999,120]
[399724521,1766635866560,-1256.0,0.00038999,120]
[399724522,1766635866571,-152.0,0.00038999,120]
[399724523,1766635866586,-152.0,0.00038999,120]
[399724524,1766635866595,-1256.0,0.00038999,120]
[399724525,1766635866605,-152.0,0.00038999,120]
[399724526,1766635866615,-152.0,0.00038999,120]
[399724527,1766635866627,-1256.0,0.00038999,120]
[399724528,1766635866638,-152.0,0.00038999,120]
[399724529,1766635866649,-152.0,0.00038999,120]
[399724530,1766635866660,-1256.0,0.00038999,120]
[399724531,1766635866671,-152.0,0.00038999,120]
[399724532,1766635866680,-152.0,0.00038999,120]
[399724533,1766635866691,-1256.0,0.00038999,120]
[399724534,1766635866701,-152.0,0.00038999,120]
[399724535,1766635866712,-152.0,0.00038999,120]
[399724536,1766635866723,-152.0,0.00038999,120]
[399724537,1766635866733,-1129.52601387,0.00038999,120]
[399724538,1766635866828,-206.21647338,0.00038999,120]
[399724539,1766635866840,-153.0,0.00038999,120]
[399724540,1766635866851,-153.0,0.00038999,120]
[399724541,1766635866861,-153.0,0.00038999,120]
[399724542,1766635866870,-500.0,0.00038999,31]
[399724543,1766635866881,-543.0,0.00038999,31]
[399724544,1766635866891,-500.0,0.00038999,31]
[399724545,1766635866900,-1500.0,0.00038999,31]
[399724546,1766635866911,-151.0,0.00038999,31]
[399724547,1766635866921,-300.0,0.00038999,31]
[399724548,1766635866931,-153.04435224,0.00038999,31]
[399724549,1766635866943,-414.0,0.00038999,31]
[399724550,1766635866954,-500.0,0.00038999,31]
[399724551,1766635866964,-200.0,0.00038999,31]
[399724552,1766635866974,-1500.0,0.00038999,31]
[399724553,1766635866983,-500.0,0.00038999,31]
[399724554,1766635866994,-500.0,0.00038999,31]
[399724555,1766635867005,-500.0,0.00038999,31]
[399724556,1766635867015,-151.0,0.00038999,31]
[399724557,1766635867025,-151.0,0.00038999,31]
[399724558,1766635867036,-520.0,0.00038999,31]
[399724559,1766635867047,-250.0,0.00038999,31]
[399724560,1766635867057,-250.0,0.00038999,31]
[399724561,1766635867068,-1500.0,0.00038999,31]
[399724562,1766635867078,-250.0,0.00038999,31]
[399724563,1766635867089,-151.0,0.00038999,31]
[399724564,1766635867099,-151.0,0.00038999,31]
[399724565,1766635867109,-1000.0,0.00038999,2]
[399724566,1766635867120,-500.0,0.00038999,45]
[399724567,1766635867129,-587.42809654,0.00038999,45]
[399724568,1766635867139,-1075.08409877,0.00039,31]
[399724569,1766635867150,-4970059.85221071,0.00039,2]
[399724570,1766635867366,-281.034208,0.00039,2]
[399724571,1766635867542,-341.04,0.00017356,2]
[399724572,1766635867756,-155.82955473,0.00017356,2]
[399724573,1766635867765,-627.13387074,0.00033905,2]
[399724574,1766635867941,-350.2804,0.00012038,2]
[399724575,1766635867950,-1331.00287184,0.00033905,2]
[399724576,1766635867963,-4575.86325742,0.00033905,2]
[399724577,1766635867973,-724.27347049,0.00036905,2]
[399724578,1766635867989,-3379.01848402,0.00036905,2]
[399724579,1766635868002,-461.74759373,0.00036905,2]
[399724580,1766635868019,-1968.96045176,0.00036905,2]
[399724581,1766635868029,-659.58,0.0003816,2]
[399724582,1766635868039,-1863.29806109,0.00039,2]
[399724583,1766635868052,-2197.04172547,0.00039,2]
[399724584,1766635868063,-3862.87557284,0.00039,2]
[399724585,1766635868079,-2670.74606142,0.00039,2]
[399724586,1766636249739,-339.21760029,0.00011936,2]
[399724587,1766636249772,-300.0,0.00011961,2]
[399724588,1766636249803,-250.0,0.00011986,2]
[399724589,1766636249833,-300.0,0.00012002,2]
[399724590,1766636249868,-250.0,0.00012017,2]
[399724591,1766636249899,-500.0,0.00012031,2]
[399724592,1766636249930,-500.0,0.00012031,2]
[399724593,1766636249960,-500.0,0.00012031,2]
[399724594,1766636249990,-500.0,0.00012031,2]
[399724595,1766636250021,-500.0,0.00012031,2]
[399724596,1766636250051,-166.41283216,0.00012031,2]
[399724597,1766636250082,-500.0,0.00012031,2]
[399724598,1766636250112,-288.7491351,0.00012031,2]
[399724599,1766636250250,-211.2508649,0.00012031,2]
[399724600,1766636250292,-500.0,0.00012031,2]
[399724601,1766636250323,-500.0,0.00012031,2]
[399724602,1766636250352,-500.0,0.00012031,2]
[399724603,1766636250381,-513.04693439,0.00012031,2]
[399724604,1766636250414,-151.0,0.00012031,2]
[399724605,1766636250453,-151.0,0.00012031,2]
[399724606,1766636250487,-151.0,0.00012031,2]
[399724607,1766636250523,-151.0,0.00012031,2]
[399724608,1766636250554,-151.0,0.00012031,2]
[399724609,1766636250586,-151.0,0.00012031,2]
[399724610,1766636250883,-151.0,0.00012031,2]
[399724611,1766636250913,-151.0,0.00012031,2]
[399724612,1766636250942,-151.0,0.00012031,2]
[399724613,1766636250971,-151.0,0.00012031,2]
[399724614,1766636251000,-151.0,0.00012031,2]
[399724615,1766636251029,-1029.41440142,0.00012036,2]
[399724616,1766636251128,-170.58559858,0.00012036,2]
[399724617,1766636251159,-300.0,0.00012036,2]
[399724618,1766636251188,-241.03614519,0.00012037,2]
[399724619,1766636251217,-500.0,0.00012037,2]
[399724620,1766636251246,-237.05158453,0.00012037,2]
[399724621,1766636251276,-500.0,0.00012037,2]
[399724622,1766636251305,-500.0,0.00012037,2]
[399724623,1766636251340,-500.0,0.00012037,2]
[399724624,1766636251370,-501.31859887,0.00012037,2]
[399724625,1766636251400,-500.0,0.00012037,2]
[399724626,1766636251435,-500.0,0.00012037,2]
[399724627,1766636251477,-500.0,0.00012037,2]
[399724628,1766636251602,-417.33749278,0.00012037,2]
[399724629,1766636251638,-500.0,0.00012037,2]
[399724630,1766636251672,-632.16771404,0.00012037,2]
[399724631,1766636252440,-515.81374098,0.00012038,2]
[399724632,1766636252457,-6900.99958636,0.00012038,2]
[399724633,1766636252473,-10000.01,0.00012038,2]
[399724634,1766636252622,-10000.01,0.00012038,2]
[399724635,1766636252751,-10000.01,0.00012038,2]
[399724636,1766636253073,-10000.01,0.00012038,2]
[399724637,1766636308655,47704.68720869,0.00022,30]
[399724638,1766636853054,-264.0,0.000118,2]
[399724639,1766636853093,-300.0,0.00011834,2]
[399724640,1766636853126,-250.0,0.00011868,2]
[399724641,1766636853159,-300.0,0.00011936,2]
[399724642,1766636853191,-300.0,0.00011936,2]
[399724643,1766636853222,-300.0,0.00011937,2]
[399724644,1766636853253,-1200.0,0.00011937,2]
[399724652,1766636921021,10000.01,0.0001,2]
[399724653,1766636921046,8518.41947932,0.0001,2]
[399724664,1766636974643,1481.59052068,0.00011838,2]
[399724665,1766636974674,10000.01,0.00011838,2]
[399724666,1766636974703,10000.01,0.00011838,2]
[399724667,1766636974729,10000.01,0.00011838,2]
[399724668,1766636974757,10000.01,0.00011838,2]
[399724669,1766636974783,10000.01,0.00011838,2]
[399724670,1766636974810,10000.01,0.00011838,2]
[399724671,1766636974840,10000.01,0.00011838,2]
[399724672,1766636974869,10000.01,0.00011838,2]
[399724673,1766636974897,10000.01,0.00011838,2]
[399724674,1766636975266,-479.88703614,0.00011838,2]
[399724675,1766636990265,-10000.01,0.00011838,2]
[399724676,1766636990404,-10000.01,0.00011838,2]
[399724677,1766636990528,-10000.01,0.00011838,2]
[399724678,1766636992982,-10000.01,0.00011838,2]
[399724679,1766636995815,-10000.01,0.00011838,2]
[399724680,1766636995932,-10000.01,0.00011838,2]
[399724681,1766636996047,-10000.01,0.00011838,2]
[399724682,1766636998828,-10000.01,0.00011838,2]
[399724694,1766637032461,-565.39403671,0.000118,2]
[399724697,1766637032474,-414.49619536,0.000118,2]
[399724699,1766637032484,-1200.0,0.00011837,2]
[399724701,1766637032494,-300.0,0.00011837,2]
[399724703,1766637032504,-300.0,0.00011837,2]
[399724705,1766637032515,-117.58440188,0.00011837,2]
[399724711,1766637032561,-32.41559812,0.00011837,2]
[399724714,1766637032571,-2878.02116923,0.00011837,2]
[399724715,1766637032587,-5151.67103914,0.00011838,2]
[399724716,1766637032600,-433.60596329,0.00011838,2]
[399724717,1766637032611,-908.55577311,0.00011838,2]
[399724718,1766637032625,-381.28958912,0.00011838,2]
[399724719,1766637032645,-497.76627144,0.00011838,2]
[399724722,1766637038384,-6599.99875584,0.00011838,2]
[399724723,1766637038550,-1887.00000252,0.00011838,2]
[399724724,1766637038563,-594.16393369,0.00011838,2]
[399724725,1766637038575,-811584.30111503,0.00011838,2]
[399724726,1766637038585,-1023.30892095,0.00011937,2]
[399724727,1766637038596,-167.14084097,0.00012018,2]